fUSD/lending_fUSD_20251103
["ID","MTS","AMOUNT","RATE_DAILY","PERIOD"]
[392985415,1762197047391,-151.0,0.00037042,31]
[392985416,1762197047400,-190.614927,0.00037042,31]
[392985417,1762197047411,-151.0,0.00037042,31]
[392985419,1762197047421,-190.614927,0.00037042,31]
[392985421,1762197047430,-151.0,0.00037042,31]
[392985423,1762197047439,-190.614927,0.00037042,31]
[392985425,1762197047448,-190.614927,0.00037042,31]
[392985427,1762197047459,-151.0,0.00037042,31]
[392985429,1762197047468,-190.614927,0.00037042,31]
[392985431,1762197047478,-153.237069,0.00037042,31]
[392985433,1762197047488,-190.614927,0.00037042,31]
[392985435,1762197047496,-190.614927,0.00037042,31]
[392985437,1762197047505,-190.614927,0.00037042,31]
[392985438,1762197047515,-190.614927,0.00037042,31]
[392985440,1762197047524,-190.614927,0.00037042,31]
[392985442,1762197047534,-190.614927,0.00037042,31]
[392985444,1762197047543,-190.614927,0.00037042,31]
[392985446,1762197047552,-190.614927,0.00037042,31]
[392985448,1762197047562,-190.614927,0.00037042,31]
[392985450,1762197047572,-190.614927,0.00037042,31]
[392985453,1762197047582,-190.614927,0.00037042,31]
[392985455,1762197047592,-190.614923,0.00037042,31]
[392985457,1762197047601,-151.0,0.00037042,31]
[392985459,1762197047610,-151.0,0.00037042,31]
[392985461,1762197047619,-151.0,0.00037042,31]
[392985463,1762197047629,-160.058161,0.00037042,31]
[392985465,1762197047638,-151.0,0.00037042,31]
[392985467,1762197047647,-151.0,0.00037042,31]
[392985469,1762197047656,-151.0,0.00037042,31]
[392985471,1762197047665,-151.0,0.00037042,31]
[392985473,1762197047675,-151.0,0.00037042,31]
[392985475,1762197047684,-151.0,0.00037042,31]
[392985477,1762197047693,-151.0,0.00037042,31]
[392985478,1762197047702,-151.0,0.00037042,31]
[392985481,1762197047712,-206.006682,0.00037042,31]
[392985483,1762197047722,-151.0,0.00037042,31]
[392985485,1762197047732,-151.0,0.00037042,31]
[392985486,1762197047742,-151.0,0.00037042,31]
[392985488,1762197047751,-151.0,0.00037042,31]
[392985490,1762197047761,-151.0,0.00037042,31]
[392985492,1762197047771,-151.0,0.00037042,31]
[392985494,1762197047781,-151.0,0.00037042,31]
[392985496,1762197047790,-151.0,0.00037042,31]
[392985498,1762197047799,-151.0,0.00037042,31]
[392985500,1762197047808,-151.0,0.00037042,31]
[392985502,1762197047818,-151.0,0.00037042,31]
[392985504,1762197047828,-215.970601,0.00037042,31]
[392985506,1762197047836,-542.952073,0.00037042,31]
[392985508,1762197047845,-542.952073,0.00037042,31]
[392985510,1762197047854,-542.952073,0.00037042,31]
[392985512,1762197047863,-542.952073,0.00037042,31]
[392985514,1762197047873,-542.952073,0.00037042,31]
[392985516,1762197047882,-542.952073,0.00037042,31]
[392985518,1762197047892,-542.952073,0.00037042,31]
[392985520,1762197047901,-542.952073,0.00037042,31]
[392985522,1762197047911,-542.952073,0.00037042,31]
[392985524,1762197047920,-542.952073,0.00037042,31]
[392985526,1762197047929,-542.952073,0.00037042,31]
[392985528,1762197047938,-542.952073,0.00037042,31]
[392985530,1762197047947,-542.952073,0.00037042,31]
[392985532,1762197047956,-151.0,0.00037042,31]
[392985534,1762197047965,-542.952073,0.00037042,31]
[392985536,1762197047974,-151.0,0.00037042,31]
[392985538,1762197047983,-542.952073,0.00037042,31]
[392985540,1762197047992,-151.0,0.00037042,31]
[392985542,1762197048002,-151.0,0.00037042,31]
[392985544,1762197048011,-542.952073,0.00037042,31]
[392985546,1762197048020,-151.0,0.00037042,31]
[392985548,1762197048029,-542.952073,0.00037042,31]
[392985550,1762197048038,-151.0,0.00037042,31]
[392985552,1762197048046,-151.0,0.00037042,31]
[392985554,1762197048055,-151.0,0.00037042,31]
[392985556,1762197048064,-239.121603,0.00037042,31]
[392985558,1762197048073,-155.707145,0.00037042,31]
[392985560,1762197048082,-542.952073,0.00037042,31]
[392985562,1762197048091,-239.121603,0.00037042,31]
[392985564,1762197048100,-151.0,0.00037042,31]
[392985565,1762197048109,-542.952073,0.00037042,31]
[392985566,1762197048118,-239.121603,0.00037042,31]
[392985567,1762197048127,-151.0,0.00037042,31]
[392985568,1762197048279,-542.952069,0.00037042,31]
[392985569,1762197048289,-239.121603,0.00037042,31]
[392985570,1762197048299,-190.904624,0.00037042,31]
[392985571,1762197048310,-239.121603,0.00037042,31]
[392985572,1762197048319,-239.121603,0.00037042,31]
[392985573,1762197048328,-239.121603,0.00037042,31]
[392985574,1762197048338,-239.121603,0.00037042,31]
[392985575,1762197048347,-239.121603,0.00037042,31]
[392985576,1762197048356,-239.121603,0.00037042,31]
[392985577,1762197048366,-239.121603,0.00037042,31]
[392985578,1762197048379,-239.121603,0.00037042,31]
[392985579,1762197048388,-464.694484,0.00037042,31]
[392985580,1762197048397,-464.694484,0.00037042,31]
[392985581,1762197048406,-239.121603,0.00037042,31]
[392985582,1762197048416,-464.694484,0.00037042,31]
[392985583,1762197048425,-239.121603,0.00037042,31]
[392985584,1762197048434,-464.694484,0.00037042,31]
[392985585,1762197048443,-239.121603,0.00037042,31]
[392985586,1762197048454,-464.694484,0.00037042,31]
[392985587,1762197048463,-239.121603,0.00037042,31]
[392985588,1762197048473,-239.121603,0.00037042,31]
[392985589,1762197048482,-464.694484,0.00037042,31]
[392985590,1762197048492,-151.0,0.00037042,31]
[392985591,1762197048501,-464.694484,0.00037042,31]
[392985592,1762197048510,-239.121603,0.00037042,31]
[392985593,1762197048519,-151.0,0.00037042,31]
[392985594,1762197048529,-464.694484,0.00037042,31]
[392985595,1762197048538,-239.121603,0.00037042,31]
[392985596,1762197048547,-188.494499,0.00037042,31]
[392985597,1762197048556,-151.0,0.00037042,31]
[392985598,1762197048565,-151.0,0.00037042,31]
[392985599,1762197048575,-464.694484,0.00037042,31]
[392985600,1762197048584,-239.121594,0.00037042,31]
[392985601,1762197048593,-151.0,0.00037042,31]
[392985602,1762197048602,-151.0,0.00037042,31]
[392985603,1762197048611,-464.694484,0.00037042,31]
[392985604,1762197048622,-151.0,0.00037042,31]
[392985605,1762197048631,-220.775732,0.00037042,31]
[392985606,1762197048641,-464.694484,0.00037042,31]
[392985607,1762197048651,-168.36074,0.00037042,31]
[392985608,1762197048660,-464.694484,0.00037042,31]
[392985609,1762197048669,-464.694484,0.00037042,31]
[392985610,1762197048678,-464.694484,0.00037042,31]
[392985611,1762197048687,-152.452258,0.00037042,31]
[392985612,1762197048696,-464.694484,0.00037042,31]
[392985613,1762197048705,-464.694484,0.00037042,31]
[392985614,1762197048714,-464.694484,0.00037042,31]
[392985615,1762197048723,-464.694484,0.00037042,31]
[392985616,1762197048732,-464.694484,0.00037042,31]
[392985617,1762197048741,-464.69448,0.00037042,31]
[392985618,1762197048750,-243.742611,0.00037042,31]
[392985619,1762197048759,-151.0,0.00037042,31]
[392985620,1762197048769,-2327.674947,0.00037042,31]
[392985621,1762197048778,-2327.674947,0.00037042,31]
[392985622,1762197048787,-2327.674947,0.00037042,31]
[392985623,1762197048796,-2327.674947,0.00037042,31]
[392985624,1762197048805,-2327.674947,0.00037042,31]
[392985625,1762197048815,-151.0,0.00037042,31]
[392985626,1762197048824,-2327.674947,0.00037042,31]
[392985627,1762197048833,-151.0,0.00037042,31]
[392985628,1762197048843,-151.0,0.00037042,31]
[392985629,1762197048852,-151.0,0.00037042,31]
[392985630,1762197048861,-151.0,0.00037042,31]
[392985631,1762197048870,-2327.674947,0.00037042,31]
[392985632,1762197048880,-151.0,0.00037042,31]
[392985633,1762197048889,-151.0,0.00037042,31]
[392985634,1762197048898,-2327.674947,0.00037042,31]
[392985635,1762197048907,-182.839494,0.00037042,31]
[392985636,1762197048916,-2327.674947,0.00037042,31]
[392985637,1762197048926,-2327.674947,0.00037042,31]
[392985638,1762197048935,-2327.674947,0.00037042,31]
[392985639,1762197048945,-2327.674947,0.00037042,31]
[392985640,1762197048955,-2327.674947,0.00037042,31]
[392985641,1762197048964,-2327.674947,0.00037042,31]
[392985642,1762197048973,-2327.674947,0.00037042,31]
[392985643,1762197048983,-2327.674947,0.00037042,31]
[392985644,1762197048992,-2327.674947,0.00037042,31]
[392985645,1762197049001,-2327.674947,0.00037042,31]
[392985646,1762197049011,-2327.674947,0.00037042,31]
[392985647,1762197049020,-2327.674948,0.00037042,31]
[392985648,1762197049030,-151.0,0.00037042,31]
[392985649,1762197049039,-151.0,0.00037042,31]
[392985650,1762197049048,-151.0,0.00037042,31]
[392985651,1762197049057,-151.0,0.00037042,31]
[392985652,1762197049067,-159.037364,0.00037042,31]
[392985653,1762197049076,-275.789944,0.00037042,31]
[392985654,1762197049085,-275.789944,0.00037042,31]
[392985655,1762197049094,-275.789944,0.00037042,31]
[392985656,1762197049103,-275.789944,0.00037042,31]
[392985657,1762197049114,-275.789944,0.00037042,31]
[392985658,1762197049123,-275.789944,0.00037042,31]
[392985659,1762197049133,-275.789944,0.00037042,31]
[392985660,1762197049142,-275.789944,0.00037042,31]
[392985661,1762197049152,-275.789944,0.00037042,31]
[392985662,1762197049161,-275.789944,0.00037042,31]
[392985663,1762197049171,-275.789944,0.00037042,31]
[392985664,1762197049180,-275.789944,0.00037042,31]
[392985665,1762197049190,-275.789944,0.00037042,31]
[392985666,1762197049199,-275.789944,0.00037042,31]
[392985667,1762197049208,-275.789944,0.00037042,31]
[392985668,1762197049217,-275.789944,0.00037042,31]
[392985669,1762197049227,-275.789944,0.00037042,31]
[392985670,1762197049237,-275.789944,0.00037042,31]
[392985671,1762197049246,-275.789944,0.00037042,31]
[392985672,1762197049255,-275.789936,0.00037042,31]
[392985673,1762197049264,-235.568692,0.00037042,31]
[392985674,1762197049275,-235.568692,0.00037042,31]
[392985675,1762197049284,-235.568692,0.00037042,31]
[392985676,1762197049294,-235.568692,0.00037042,31]
[392985677,1762197049303,-235.568692,0.00037042,31]
[392985678,1762197049312,-235.568692,0.00037042,31]
[392985679,1762197049321,-235.568692,0.00037042,31]
[392985680,1762197049331,-235.568692,0.00037042,31]
[392985681,1762197049340,-235.568692,0.00037042,31]
[392985682,1762197049349,-235.568692,0.00037042,31]
[392985683,1762197049358,-235.568692,0.00037042,31]
[392985684,1762197049369,-235.568692,0.00037042,31]
[392985685,1762197049381,-235.568692,0.00037042,31]
[392985686,1762197049391,-235.568692,0.00037042,31]
[392985687,1762197049400,-235.568692,0.00037042,31]
[392985688,1762197049410,-235.568692,0.00037042,31]
[392985689,1762197049420,-235.568692,0.00037042,31]
[392985690,1762197049430,-235.568692,0.00037042,31]
[392985691,1762197049439,-235.568692,0.00037042,31]
[392985692,1762197049449,-235.568701,0.00037042,31]
[392985693,1762197049458,-151.0,0.00037042,31]
[392985694,1762197049466,-151.0,0.00037042,31]
[392985695,1762197049475,-151.0,0.00037042,31]
[392985696,1762197049484,-151.0,0.00037042,31]
[392985697,1762197049493,-235.22591,0.00037042,31]
[392985698,1762197049503,-151.0,0.00037042,31]
[392985699,1762197049511,-151.0,0.00037042,31]
[392985700,1762197049521,-151.0,0.00037042,31]
[392985701,1762197049530,-151.0,0.00037042,31]
[392985702,1762197049540,-151.0,0.00037042,31]
[392985703,1762197049549,-227.957872,0.00037042,31]
[392985704,1762197049558,-151.0,0.00037042,31]
[392985705,1762197049567,-227.957872,0.00037042,31]
[392985706,1762197049576,-151.0,0.00037042,31]
[392985707,1762197049585,-151.0,0.00037042,31]
[392985708,1762197049594,-227.957872,0.00037042,31]
[392985709,1762197049603,-151.0,0.00037042,31]
[392985710,1762197049613,-227.957872,0.00037042,31]
[392985711,1762197049622,-151.0,0.00037042,31]
[392985712,1762197049631,-227.957872,0.00037042,31]
[392985713,1762197049640,-151.0,0.00037042,31]
[392985714,1762197049649,-227.957872,0.00037042,31]
[392985715,1762197049658,-151.0,0.00037042,31]
[392985716,1762197049667,-227.957872,0.00037042,31]
[392985717,1762197049676,-151.0,0.00037042,31]
[392985718,1762197049686,-227.957872,0.00037042,31]
[392985719,1762197049695,-227.957872,0.00037042,31]
[392985720,1762197049704,-227.957872,0.00037042,31]
[392985721,1762197049713,-227.957872,0.00037042,31]
[392985722,1762197049722,-227.957872,0.00037042,31]
[392985723,1762197049731,-227.957872,0.00037042,31]
[392985724,1762197049741,-227.957872,0.00037042,31]
[392985725,1762197049750,-227.957872,0.00037042,31]
[392985726,1762197049759,-227.957872,0.00037042,31]
[392985727,1762197049770,-227.957872,0.00037042,31]
[392985728,1762197049779,-227.957872,0.00037042,31]
[392985729,1762197049789,-227.957872,0.00037042,31]
[392985730,1762197049798,-227.957863,0.00037042,31]
[392985731,1762197049807,-151.0,0.00037042,31]
[392985732,1762197049816,-160.559873,0.00037042,31]
[392985733,1762197049826,-168.0,0.00037048,120]
[392985734,1762197049835,-151.0,0.00037052,14]
[392985735,1762197049844,-184.04727785,0.00037054,31]
[392985736,1762197049854,-15990.36680788,0.00037054,24]
[392985737,1762197049863,-4919869.49288476,0.00037055,7]
[392985738,1762197050524,-14719.78688427,0.00037055,7]
[392985739,1762197050535,-196393.64934698,0.00037055,7]
[392985740,1762197050582,-1077.30901779,0.00037055,7]
[392985741,1762197050595,-5940.80545444,0.00037055,7]
[392985742,1762197050606,-671.20979498,0.00037055,7]
[392985743,1762197052104,-287.067,0.00027386,2]
[392985744,1762197052114,-3026.5610373,0.00037055,7]
[392985745,1762197052172,-364.13,0.00037055,7]
[392985746,1762197052184,-434035.13104957,0.00037055,7]
[392985747,1762197052237,-1082.90865234,0.00037055,7]
[392985748,1762197052912,-152.91482351,0.00028202,2]
[392985749,1762197052922,-377.24559049,0.00030137,2]
[392985750,1762197052931,-1000.0,0.00037037,7]
[392985751,1762197052940,-9167.83958599,0.00037055,7]
[392985752,1762197052982,-464.01426899,0.00037055,7]
[392985753,1762197053015,-4774.01792673,0.00037055,7]
[392985754,1762197053030,-5051588.21506408,0.00037055,7]
[392985755,1762197053049,-480.82551612,0.00037055,7]
[392985756,1762197053882,-318.64586306,0.00037055,7]
[392985757,1762197054195,-35803.53999278,0.00037055,7]
[392985758,1762197054206,-4342.56101803,0.00037055,7]
[392985759,1762197054237,-809.68401322,0.00037055,7]
[392985760,1762197054269,-1153.0941925,0.00037055,7]
[392985761,1762197054282,-3696.18171301,0.00037055,7]
[392985773,1762197390842,1000.0,0.00013699,2]
[392985782,1762197519656,1311.43,0.00026192,120]
[392985787,1762197682954,500.0,0.00027397,120]
[392985793,1762197908096,380018.58224439,0.00015,2]
[392985794,1762197908122,2070234.7758862,0.00015,2]
[392985796,1762198009900,500.0,0.00027397,120]
[392985797,1762198029172,479.95547898,0.0002301,120]
[392985798,1762198065339,189.68455426,0.00027,120]
[392985807,1762198110367,465.25928359,0.000246,120]
[392985809,1762198129378,285.0,0.00026017,120]
[392985810,1762198129827,285.0,0.00026007,120]
[392985811,1762198130307,285.0,0.00025997,120]
[392985824,1762198231656,-250.0,0.00017,2]
[392985825,1762198231665,-160.0,0.00017,2]
[392985826,1762198231675,-90.0,0.000187,2]
[392985827,1762198231686,-105.0,0.000187,2]
[392985828,1762198231695,-370.74252814,0.000187,2]
[392985829,1762198231726,-106.80947616,0.000187,2]
[392985830,1762198231735,-5000.0,0.000187,11]
[392985832,1762198231746,-250.0,0.000187,2]
[392985834,1762198231756,-300.0,0.00019,2]
[392985836,1762198231766,-1000.0,0.00020187,2]
[392985838,1762198231775,-500.0,0.00021918,4]
[392985840,1762198231785,-500.0,0.00021918,4]
[392985842,1762198231795,-500.0,0.00021918,4]
[392985844,1762198231804,-500.0,0.00021918,4]
[392985846,1762198231813,-500.0,0.00021918,4]
[392985848,1762198231822,-500.0,0.00021918,4]
[392985849,1762198231831,-500.0,0.00021918,4]
[392985850,1762198231840,-500.0,0.00021918,4]
[392985851,1762198231849,-500.0,0.00022173,2]
[392985853,1762198231859,-500.0,0.00022173,2]
[392985855,1762198231869,-500.0,0.00022173,2]
[392985856,1762198231878,-500.0,0.00022173,2]
[392985858,1762198231887,-500.0,0.00022173,2]
[392985859,1762198231896,-500.0,0.00022173,2]
[392985860,1762198231904,-500.0,0.00022173,2]
[392985861,1762198231914,-500.0,0.00022173,2]
[392985862,1762198231923,-190.18641604,0.00022199,2]
[392985863,1762198231932,-190.03977082,0.00022199,2]
[392985864,1762198231941,-500.0,0.00022199,2]
[392985865,1762198231949,-430.78344782,0.00022199,2]
[392985866,1762198231958,-500.0,0.00022199,2]
[392985867,1762198231967,-500.0,0.00022199,2]
[392985868,1762198231976,-500.0,0.00022199,2]
[392985869,1762198231985,-500.0,0.00022199,2]
[392985870,1762198231994,-500.0,0.00022199,2]
[392985871,1762198232003,-500.0,0.00022199,2]
[392985872,1762198232012,-500.0,0.00022199,2]
[392985873,1762198232021,-231.02086275,0.00022199,2]
[392985874,1762198232030,-240099.95127409,0.000222,2]
[392985875,1762198232041,-1036.37731823,0.000222,2]
[392985876,1762198232054,-777.1336,0.000222,2]
[392985877,1762198232109,-707.97205118,0.000222,2]
[392985878,1762198232120,-3388.0,0.000222,2]
[392985889,1762198237528,-500.0,0.00022199,2]
[392985890,1762198237538,-500.0,0.00022199,2]
[392985891,1762198237548,-2195183.87533291,0.000222,2]
[392985892,1762198237558,-294.20200647,0.00022621,2]
[392985893,1762198237570,-500.0,0.00022721,2]
[392985894,1762198237579,-500.0,0.00022721,2]
[392985895,1762198237588,-1630.05,0.00024118,2]
[392985896,1762198237598,-3292.79,0.00024382,2]
[392985897,1762198237607,-160.32763133,0.00024558,2]
[392985898,1762198237616,-683.61,0.00024658,2]
[392985900,1762198237626,-294.20200647,0.00024669,2]
[392985902,1762198237635,-548.74,0.00024795,2]
[392985904,1762198237645,-830.01,0.00024795,2]
[392985906,1762198237654,-210.75,0.00024795,2]
[392985908,1762198237663,-337.76,0.00024795,2]
[392985910,1762198237672,-1103.76,0.00024795,2]
[392985912,1762198237681,-150.59,0.00024795,2]
[392985914,1762198237691,-1248.68,0.00024795,2]
[392985916,1762198237700,-837.14,0.00024795,2]
[392985918,1762198237713,-476.83,0.00024795,2]
[392985920,1762198237723,-304.31,0.00024795,2]
[392985922,1762198237732,-698.15,0.00024795,2]
[392985924,1762198237742,-476.83,0.00024795,2]
[392985925,1762198237753,-698.15,0.00024795,2]
[392985926,1762198237762,-698.15,0.00024795,2]
[392985927,1762198237771,-1003.747706,0.000248,30]
[392985928,1762198237781,-631481.507207,0.000248,3]
[392985929,1762198237792,-586134.241414,0.000249,3]
[392985930,1762198237803,-500.0,0.00024932,2]
[392985931,1762198237814,-166.66,0.00024937,30]
[392985932,1762198237825,-2001.09538803,0.00025,3]
[392985933,1762198237835,-1000.0,0.00025279,7]
[392985934,1762198237844,-1000.0,0.00025457,7]
[392985935,1762198237854,-166.66,0.00025462,30]
[392985936,1762198237863,-1000.0,0.00025584,7]
[392985937,1762198237873,-1000.0,0.00025943,7]
[392985938,1762198237883,-166.66,0.00025987,30]
[392985939,1762198237893,-1571.65517801,0.00026,10]
[392985940,1762198237903,-1000.0,0.00026027,2]
[392985941,1762198237913,-1000.0,0.00026301,2]
[392985942,1762198237922,-160.32763133,0.00026329,2]
[392985943,1762198237932,-1000.0,0.00026332,7]
[392985944,1762198237941,-1000.0,0.00026387,7]
[392985945,1762198237951,-500.0,0.00026421,2]
[392985946,1762198237960,-166.66,0.00026512,30]
[392985947,1762198237969,-1000.0,0.00026567,2]
[392985948,1762198237979,-2000.0,0.00026575,2]
[392985949,1762198237988,-1000.0,0.00026575,2]
[392985950,1762198237998,-1000.0,0.00026578,7]
[392985951,1762198238007,-421.0,0.00026591,2]
[392985952,1762198238016,-150.99,0.00026591,2]
[392985953,1762198238026,-9999.99,0.00026591,2]
[392985954,1762198238035,-5857.41,0.00026591,2]
[392985955,1762198238046,-886.59,0.00026591,2]
[392985956,1762198238056,-5000.0,0.00026637,2]
[392985957,1762198238068,-1000.0,0.00026676,2]
[392985958,1762198238077,-294.20200647,0.00026717,2]
[392985959,1762198238088,-1000.0,0.00026849,2]
[392985960,1762198238098,-1000.0,0.00026951,7]
[392985961,1762198238108,-166.66,0.00027037,30]
[392985962,1762198238118,-1000.0,0.00027123,2]
[392985963,1762198238128,-340.0548,0.0002737,10]
[392985964,1762198238138,-176.41,0.00027397,2]
[392985965,1762198238148,-1427.95,0.00027397,2]
[392985966,1762198238158,-1000.0,0.00027397,2]
[392985967,1762198238168,-1480.09,0.000274,7]
[392985968,1762198238178,-663.6,0.000274,2]
[392985969,1762198238189,-212.85,0.000274,7]
[392985970,1762198238199,-166.66,0.00027562,30]
[392985971,1762198238209,-1000.0,0.00027671,2]
[392985972,1762198238219,-1161.62,0.00027671,30]
[392985973,1762198238230,-1000.0,0.00027762,7]
[392985974,1762198238240,-683.61,0.00027793,2]
[392985975,1762198238250,-1000.0,0.00027833,7]
[392985976,1762198238261,-1000.0,0.00027945,2]
[392985977,1762198238271,-1000.0,0.00028094,7]
[392985978,1762198238281,-160.32763133,0.000281,2]
[392985979,1762198238291,-1000.0,0.00028194,7]
[392985980,1762198238303,-1000.0,0.00028219,2]
[392985981,1762198238313,-1000.0,0.00028349,7]
[392985982,1762198238323,-1000.0,0.00028493,2]
[392985983,1762198238333,-600.0,0.00028532,7]
[392985984,1762198238344,-1000.0,0.00028591,7]
[392985985,1762198238354,-1000.0,0.00028601,7]
[392985986,1762198238364,-1000.0,0.00028746,7]
[392985987,1762198238374,-294.20200647,0.00028765,2]
[392985988,1762198238384,-1000.0,0.00028767,2]
[392985989,1762198238393,-212.85,0.000288,7]
[392985990,1762198238403,-1000.0,0.00028856,7]
[392985991,1762198238412,-185.50743248,0.00028873,5]
[392985992,1762198238422,-500.0,0.00028873,5]
[392985993,1762198238433,-1160.82604765,0.00028899,2]
[392985994,1762198238442,-500.0,0.00028908,120]
[392985995,1762198238452,-500.0,0.00028908,120]
[392985996,1762198238462,-500.0,0.00028908,120]
[392985997,1762198238473,-500.0,0.00028908,120]
[392985998,1762198238483,-500.0,0.00028908,7]
[392985999,1762198238494,-500.0,0.00028908,7]
[392986000,1762198238506,-500.0,0.00028908,120]
[392986001,1762198238517,-500.0,0.00028908,120]
[392986002,1762198238527,-500.0,0.00028908,30]
[392986003,1762198238537,-500.0,0.00028908,30]
[392986004,1762198238547,-500.0,0.00028908,120]
[392986005,1762198238556,-199.0,0.00028908,7]
[392986006,1762198238567,-500.0,0.00028908,120]
[392986007,1762198238577,-500.0,0.00028908,120]
[392986008,1762198238586,-500.0,0.00028908,120]
[392986009,1762198238596,-500.0,0.00028908,120]
[392986010,1762198238606,-500.0,0.00028908,120]
[392986011,1762198238616,-502.69893508,0.00028908,120]
[392986012,1762198238843,-1344.02,0.00028908,120]
[392986013,1762198238854,-1344.02,0.00028908,120]
[392986014,1762198238864,-500.0,0.00028908,120]
[392986015,1762198238875,-500.0,0.00028908,120]
[392986016,1762198238885,-420000.0,0.00028909,2]
[392986017,1762198238894,-1000.0,0.00028909,2]
[392986018,1762198238904,-1000.0,0.00028909,2]
[392986019,1762198238914,-1000.0,0.00029004,7]
[392986020,1762198238924,-1000.0,0.00029041,2]
[392986021,1762198238934,-1480.09,0.000291,7]
[392986022,1762198238943,-663.6,0.000291,2]
[392986023,1762198238953,-199.0,0.00029182,8]
[392986024,1762198238962,-1000.0,0.00029315,2]
[392986025,1762198238972,-201.83904765,0.00029456,9]
[392986026,1762198238982,-4321.77050162,0.000295,120]
[392986027,1762198238990,-1000.0,0.00029589,2]
[392986028,1762198238999,-1000.0,0.00029794,7]
[392986029,1762198239009,-1000.0,0.00029841,7]
[392986030,1762198239019,-1000.0,0.00029863,7]
[392986031,1762198239029,-1000.0,0.00029863,2]
[392986032,1762198239039,-160.32763133,0.00029871,15]
[392986033,1762198239049,-77805.0448177,0.000299,2]
[392986034,1762198239059,-69637.48730419,0.0002999,2]
[392986035,1762198239071,-233.95762001,0.0002999,2]
[392986036,1762198239081,-73796.54080574,0.0003,5]
[392986037,1762198239092,-19602.16081808,0.0003,2]
[392986038,1762198239101,-2000.0,0.0003,14]
[392986039,1762198239111,-1791.83249526,0.0003,2]
[392986040,1762198239121,-605.88101483,0.0003,2]
[392986041,1762198239131,-50829.80950725,0.0003,2]
[392986042,1762198239141,-229.72282538,0.0003,120]
[392986043,1762198239151,-307.77807989,0.0003013,2]
[392986044,1762198239161,-1058.11949401,0.0003013,2]
[392986045,1762198239171,-13656.33618725,0.0003013,2]
[392986046,1762198239181,-1179.36970019,0.0003013,5]
[392986047,1762198239191,-625.01096004,0.0003013,2]
[392986048,1762198239201,-198.89258171,0.0003013,2]
[392986049,1762198239211,-1207.11106495,0.0003013,2]
[392986050,1762198239221,-7623.45430598,0.0003013,2]
[392986051,1762198239230,-183.39364523,0.0003013,120]
[392986052,1762198239240,-1929.14,0.00030136,2]
[392986053,1762198239250,-2000.0,0.00030137,2]
[392986055,1762198239260,-151.0,0.00030137,2]
[392986056,1762198239270,-151.0,0.00030137,2]
[392986057,1762198239280,-500.0,0.00030247,2]
[392986058,1762198239290,-501.46998897,0.00030248,120]
[392986059,1762198239299,-285.0,0.0003027,120]
[392986060,1762198239310,-285.0,0.0003028,120]
[392986061,1762198239324,-285.0,0.0003029,120]
[392986062,1762198239334,-1000.0,0.00030357,7]
[392986063,1762198239344,-3396.76,0.00030386,26]
[392986064,1762198239353,-157.066,0.00030386,26]
[392986065,1762198239363,-212.85,0.000304,30]
[392986066,1762198239373,-1929.14,0.0003041,2]
[392986067,1762198239383,-1929.14,0.00030684,2]
[392986068,1762198239392,-294.20200647,0.00030813,2]
[392986069,1762198239402,-2574.24826891,0.0003084,2]
[392986070,1762198239413,-1000.0,0.00030897,7]
[392986071,1762198239422,-683.61,0.00030928,2]
[392986072,1762198239431,-77870.02789204,0.0003095,2]
[392986073,1762198239441,-1929.14,0.00030958,2]